[Event "*** Titled Tuesday 3|2 Blitz"]
[Site "Chess.com"]
[Date "2015.12.01"]
[Round "1"]
[White "AndrewMcStone"]
[Black "chessmaxusa"]
[Result "0-1"]
[WhiteElo "1996"]
[BlackElo "2328"]
[TimeControl "180+2"]
[EndTime "11:07:20 PST"]
[Termination "chessmaxusa won by resignation"]

1. d4 {[%clk 0:02:57.4]} 1... c6 {[%clk 0:03:01.9]} 2. c4 {[%clk 0:02:58.2]}
2... d5 {[%clk 0:03:03.3]} 3. Nc3 {[%clk 0:02:58.6]} 3... Nf6 {[%clk 0:03:04.2]}
4. e3 {[%clk 0:02:59.2]} 4... Bf5 {[%clk 0:03:03.9]} 5. cxd5 {[%clk 0:02:59.3]}
5... Nxd5 {[%clk 0:03:04.3]} 6. Nge2 {[%clk 0:02:59.2]} 6... e6 {[%clk
0:03:03.7]} 7. e4 {[%clk 0:02:59]} 7... Nxc3 {[%clk 0:03:04.2]} 8. Nxc3 {[%clk
0:03:00.9]} 8... Bg6 {[%clk 0:03:06.1]} 9. Be3 {[%clk 0:02:58.1]} 9... Nd7
{[%clk 0:03:06.9]} 10. Be2 {[%clk 0:02:50.2]} 10... Nf6 {[%clk 0:03:07]} 11. f3
{[%clk 0:02:47.2]} 11... Be7 {[%clk 0:03:06.5]} 12. O-O {[%clk 0:02:47.5]} 12...
O-O {[%clk 0:03:08.1]} 13. Qd2 {[%clk 0:02:47.8]} 13... Qd7 {[%clk 0:02:58]} 14.
Rad1 {[%clk 0:02:45.7]} 14... Rfd8 {[%clk 0:02:58.6]} 15. a3 {[%clk 0:02:10.3]}
15... Qc7 {[%clk 0:02:50.5]} 16. Qe1 {[%clk 0:01:50.2]} 16... Qa5 {[%clk
0:02:44.6]} 17. Qf2 {[%clk 0:01:41.8]} 17... Rd7 {[%clk 0:02:36]} 18. g4 {[%clk
0:01:06.4]} 18... h6 {[%clk 0:02:31.6]} 19. h4 {[%clk 0:01:03.6]} 19... Rad8
{[%clk 0:02:26]} 20. g5 {[%clk 0:01:02.4]} 20... hxg5 {[%clk 0:02:26.1]} 21.
hxg5 {[%clk 0:01:03.3]} 21... Ne8 {[%clk 0:02:13.8]} 22. f4 {[%clk 0:00:57.6]}
22... Nd6 {[%clk 0:02:13.9]} 23. Bd3 {[%clk 0:00:48.5]} 23... Bh5 {[%clk
0:02:14.1]} 24. Rd2 {[%clk 0:00:43.7]} 24... g6 {[%clk 0:02:15.4]} 25. Qg3
{[%clk 0:00:37.7]} 25... Bf8 {[%clk 0:02:11.8]} 26. Rh2 {[%clk 0:00:38.2]} 26...
Bg7 {[%clk 0:02:12.5]} 27. Rxh5 {[%clk 0:00:11.6]} 27... gxh5 {[%clk 0:02:12.9]}
28. f5 {[%clk 0:00:11.4]} 28... Ne8 {[%clk 0:01:53.2]} 29. f6 {[%clk 0:00:10.8]}
29... Rxd4 {[%clk 0:01:42]} 30. Bxd4 {[%clk 0:00:10.9]} 30... Rxd4 {[%clk
0:01:43]} 31. fxg7 {[%clk 0:00:12.2]} 31... Nxg7 {[%clk 0:01:43.7]} 32. g6
{[%clk 0:00:12.6]} 32... Rd7 {[%clk 0:01:34.6]} 33. gxf7+ {[%clk 0:00:12.7]}
33... Rxf7 {[%clk 0:01:35.1]} 34. Rxf7 {[%clk 0:00:14.1]} 34... Kxf7 {[%clk
0:01:35.9]} 35. Qf3+ {[%clk 0:00:15.1]} 35... Ke7 {[%clk 0:01:34.6]} 36. Qxh5
{[%clk 0:00:14.4]} 36... Nxh5 {[%clk 0:01:34.8]} 0-1

[Event "*** Titled Tuesday 3|2 Blitz"]
[Site "Chess.com"]
[Date "2015.12.01"]
[Round "1"]
[White "AleksandrNevski"]
[Black "Colombiano07"]
[Result "1/2-1/2"]
[WhiteElo "2353"]
[BlackElo "2093"]
[TimeControl "180+2"]
[EndTime "11:07:38 PST"]
[Termination "Game drawn - insufficient material"]

1. Nf3 {[%clk 0:02:59.9]} 1... g6 {[%clk 0:03:01.9]} 2. d4 {[%clk 0:02:59.8]}
2... Bg7 {[%clk 0:03:03.8]} 3. c3 {[%clk 0:03:01.4]} 3... d5 {[%clk 0:03:02.8]}
4. Bf4 {[%clk 0:03:02.1]} 4... Nf6 {[%clk 0:03:04.7]} 5. e3 {[%clk 0:03:03.2]}
5... O-O {[%clk 0:03:06.6]} 6. Be2 {[%clk 0:03:04.5]} 6... b6 {[%clk 0:03:08.5]}
7. O-O {[%clk 0:03:05.2]} 7... Ba6 {[%clk 0:03:10.1]} 8. Bxa6 {[%clk 0:03:03.1]}
8... Nxa6 {[%clk 0:03:12]} 9. a4 {[%clk 0:03:04.8]} 9... c5 {[%clk 0:03:11.9]}
10. Nbd2 {[%clk 0:03:04.7]} 10... Nb8 {[%clk 0:03:07.9]} 11. a5 {[%clk
0:03:02.4]} 11... Nc6 {[%clk 0:03:08.4]} 12. axb6 {[%clk 0:03:02.6]} 12... axb6
{[%clk 0:03:09.2]} 13. Qb3 {[%clk 0:03:00.3]} 13... Nd7 {[%clk 0:03:04.6]} 14.
Qxd5 {[%clk 0:02:58.5]} 14... Na5 {[%clk 0:02:54.2]} 15. b4 {[%clk 0:02:34.9]}
15... cxb4 {[%clk 0:02:52.2]} 16. cxb4 {[%clk 0:02:35.3]} 16... e6 {[%clk
0:02:51.5]} 17. Qe4 {[%clk 0:02:33.9]} 17... Nf6 {[%clk 0:02:48.5]} 18. Qb1
{[%clk 0:02:23.9]} 18... Nc6 {[%clk 0:02:47.6]} 19. Rxa8 {[%clk 0:02:20.3]}
19... Qxa8 {[%clk 0:02:49.5]} 20. b5 {[%clk 0:02:21.8]} 20... Na5 {[%clk
0:02:49.5]} 21. Rc1 {[%clk 0:02:10.3]} 21... Rc8 {[%clk 0:02:45.1]} 22. Be5
{[%clk 0:02:05.7]} 22... Nd5 {[%clk 0:02:44.7]} 23. Bxg7 {[%clk 0:02:06]} 23...
Kxg7 {[%clk 0:02:46.6]} 24. Qb2 {[%clk 0:01:52.2]} 24... Qb7 {[%clk 0:02:45.1]}
25. h3 {[%clk 0:01:51.2]} 25... Rc7 {[%clk 0:02:39.3]} 26. Ne5 {[%clk
0:01:39.2]} 26... Qc8 {[%clk 0:02:38.7]} 27. Rxc7 {[%clk 0:01:27.8]} 27... Qxc7
{[%clk 0:02:40.6]} 28. e4 {[%clk 0:01:09.3]} 28... Qc3 {[%clk 0:02:36.8]} 29.
Qxc3 {[%clk 0:01:04.9]} 29... Nxc3 {[%clk 0:02:38.7]} 30. Ndc4 {[%clk
0:00:55.7]} 30... Nxc4 {[%clk 0:02:37.1]} 31. Nxc4 {[%clk 0:00:55.5]} 31... Nxb5
{[%clk 0:02:38.8]} 32. d5 {[%clk 0:00:54.5]} 32... exd5 {[%clk 0:02:40.7]} 33.
exd5 {[%clk 0:00:55.7]} 33... Kf6 {[%clk 0:02:36.6]} 34. Nxb6 {[%clk 0:00:56.6]}
34... Ke5 {[%clk 0:02:36.9]} 35. g3 {[%clk 0:00:47.7]} 35... Nc3 {[%clk
0:02:19.2]} 36. Nd7+ {[%clk 0:00:42.5]} 36... Kxd5 {[%clk 0:02:17.6]} 37. Nf6+
{[%clk 0:00:43.4]} 37... Ke6 {[%clk 0:02:19.1]} 38. Nxh7 {[%clk 0:00:38.8]}
38... f6 {[%clk 0:02:20.3]} 39. h4 {[%clk 0:00:36.3]} 39... Kf7 {[%clk
0:02:20.6]} 40. g4 {[%clk 0:00:28.2]} 40... Kg7 {[%clk 0:02:20.9]} 41. Nxf6
{[%clk 0:00:27.8]} 41... Kxf6 {[%clk 0:02:22.8]} 42. Kg2 {[%clk 0:00:29]} 42...
Ke5 {[%clk 0:02:22.3]} 43. Kf3 {[%clk 0:00:27.6]} 43... Ne4 {[%clk 0:02:20.7]}
44. Ke3 {[%clk 0:00:26.9]} 44... Nf6 {[%clk 0:02:20]} 45. f4+ {[%clk 0:00:25.1]}
45... Kd6 {[%clk 0:02:15.7]} 46. Kf3 {[%clk 0:00:25.4]} 46... Ke6 {[%clk
0:02:14.2]} 47. f5+ {[%clk 0:00:26]} 47... gxf5 {[%clk 0:02:15.2]} 48. gxf5+
{[%clk 0:00:27.4]} 48... Kxf5 {[%clk 0:02:17.1]} 49. h5 {[%clk 0:00:22.3]} 49...
Kg5 {[%clk 0:02:04.5]} 50. h6 {[%clk 0:00:21.9]} 50... Kxh6 {[%clk 0:02:05.6]}
1/2-1/2

[Event "*** Titled Tuesday 3|2 Blitz"]
[Site "Chess.com"]
[Date "2015.12.01"]
[Round "1"]
[White "stepanosinovsky"]
[Black "Konavets"]
[Result "0-1"]
[WhiteElo "2209"]
[BlackElo "2535"]
[TimeControl "180+2"]
[EndTime "11:07:42 PST"]
[Termination "Konavets won on time"]

1. Nf3 {[%clk 0:02:57.2]} 1... Nf6 {[%clk 0:02:47.5]} 2. g3 {[%clk 0:02:56.1]}
2... d5 {[%clk 0:02:38.6]} 3. Bg2 {[%clk 0:02:55.8]} 3... Bg4 {[%clk 0:02:38.7]}
4. Ne5 {[%clk 0:02:50.7]} 4... Bf5 {[%clk 0:02:30.5]} 5. c4 {[%clk 0:02:45.7]}
5... Nbd7 {[%clk 0:02:30.6]} 6. Nxd7 {[%clk 0:02:27.5]} 6... Qxd7 {[%clk
0:02:31.3]} 7. Qb3 {[%clk 0:02:22.8]} 7... c6 {[%clk 0:02:31.6]} 8. cxd5 {[%clk
0:02:08.4]} 8... cxd5 {[%clk 0:02:32.2]} 9. Nc3 {[%clk 0:02:07.9]} 9... e6
{[%clk 0:02:33.2]} 10. d3 {[%clk 0:01:59.5]} 10... Be7 {[%clk 0:02:27.6]} 11.
O-O {[%clk 0:01:58.5]} 11... O-O {[%clk 0:02:28.1]} 12. e4 {[%clk 0:01:39.9]}
12... Bg6 {[%clk 0:02:06.8]} 13. e5 {[%clk 0:01:05.3]} 13... Ne8 {[%clk
0:02:04.1]} 14. Ne2 {[%clk 0:00:59.3]} 14... Nc7 {[%clk 0:02:03.8]} 15. d4
{[%clk 0:00:54.2]} 15... Qb5 {[%clk 0:02:00.9]} 16. Qxb5 {[%clk 0:00:50]} 16...
Nxb5 {[%clk 0:02:02.8]} 17. a4 {[%clk 0:00:47.3]} 17... Nc7 {[%clk 0:02:03.5]}
18. Bd2 {[%clk 0:00:44.6]} 18... Na6 {[%clk 0:02:04.6]} 19. Nf4 {[%clk
0:00:41.1]} 19... Bb4 {[%clk 0:02:04.5]} 20. Nxg6 {[%clk 0:00:39.2]} 20... hxg6
{[%clk 0:02:05.3]} 21. Bxb4 {[%clk 0:00:35.3]} 21... Nxb4 {[%clk 0:02:06.3]} 22.
Rfc1 {[%clk 0:00:35.3]} 22... Rfc8 {[%clk 0:02:07.2]} 23. Bf1 {[%clk 0:00:34.7]}
23... Nc2 {[%clk 0:02:07.7]} 24. Rab1 {[%clk 0:00:32.9]} 24... Nxd4 {[%clk
0:02:08.8]} 25. Rd1 {[%clk 0:00:27.7]} 25... Nf3+ {[%clk 0:02:09.5]} 26. Kg2
{[%clk 0:00:27.3]} 26... Nxe5 {[%clk 0:02:11.4]} 27. f4 {[%clk 0:00:26.4]} 27...
Nc4 {[%clk 0:02:12.5]} 28. Kf3 {[%clk 0:00:25]} 28... Nd6 {[%clk 0:02:13.6]} 29.
Rdc1 {[%clk 0:00:22.3]} 29... Kf8 {[%clk 0:02:14.8]} 30. Ke3 {[%clk 0:00:20.8]}
30... Ke7 {[%clk 0:02:15.9]} 31. Kd4 {[%clk 0:00:21.4]} 31... Nf5+ {[%clk
0:02:17.1]} 32. Kd3 {[%clk 0:00:20.5]} 32... Kd6 {[%clk 0:02:18.4]} 33. g4
{[%clk 0:00:16.8]} 33... Ne7 {[%clk 0:02:19.5]} 34. Bg2 {[%clk 0:00:15.9]} 34...
Nc6 {[%clk 0:02:20.5]} 35. b4 {[%clk 0:00:15]} 35... Nxb4+ {[%clk 0:02:21.6]}
36. Kd2 {[%clk 0:00:13.1]} 36... a5 {[%clk 0:02:22.7]} 37. Bf1 {[%clk
0:00:12.3]} 37... Rxc1 {[%clk 0:02:22.8]} 38. Rxc1 {[%clk 0:00:13.1]} 38... Rh8
{[%clk 0:02:24.7]} 39. h3 {[%clk 0:00:12.8]} 39... f6 {[%clk 0:02:11.9]} 40. Bg2
{[%clk 0:00:09.4]} 40... e5 {[%clk 0:02:13]} 41. Ke3 {[%clk 0:00:08.7]} 41... g5
{[%clk 0:02:12.8]} 42. fxe5+ {[%clk 0:00:08.2]} 42... fxe5 {[%clk 0:02:14.7]}
43. Rf1 {[%clk 0:00:08.3]} 43... Nc2+ {[%clk 0:02:13.5]} 44. Kd2 {[%clk
0:00:08.5]} 44... Nd4 {[%clk 0:02:14.7]} 45. Rf7 {[%clk 0:00:08.9]} 45... Ne6
{[%clk 0:02:16]} 46. Bf1 {[%clk 0:00:07]} 46... Rf8 {[%clk 0:02:15]} 47. Rxf8
{[%clk 0:00:05.3]} 47... Nxf8 {[%clk 0:02:16.9]} 48. Bd3 {[%clk 0:00:04]} 48...
e4 {[%clk 0:02:18.1]} 49. Bb5 {[%clk 0:00:04.7]} 49... Ke5 {[%clk 0:02:19.4]}
50. Be8 {[%clk 0:00:05.1]} 50... Ne6 {[%clk 0:02:21.3]} 51. Bd7 {[%clk 0:00:05]}
51... d4 {[%clk 0:02:23.2]} 52. Bc8 {[%clk 0:00:05.6]} 52... Nc5 {[%clk
0:02:24.5]} 53. Ke2 {[%clk 0:00:03.7]} 53... g6 {[%clk 0:02:25.7]} 0-1

[Event "*** Titled Tuesday 3|2 Blitz"]
[Site "Chess.com"]
[Date "2015.12.01"]
[Round "1"]
[White "Thomaslegend"]
[Black "VSERGUEI"]
[Result "0-1"]
[WhiteElo "2153"]
[BlackElo "2448"]
[TimeControl "180+2"]
[EndTime "11:07:44 PST"]
[Termination "VSERGUEI won by resignation"]

1. d4 {[%clk 0:03:00.3]} 1... d5 {[%clk 0:03:00.3]} 2. c4 {[%clk 0:03:01.2]}
2... c6 {[%clk 0:03:00.6]} 3. Nf3 {[%clk 0:03:01.8]} 3... Nf6 {[%clk 0:03:00.1]}
4. e3 {[%clk 0:03:02.2]} 4... Bf5 {[%clk 0:02:59.3]} 5. Nc3 {[%clk 0:02:58.1]}
5... e6 {[%clk 0:02:59.9]} 6. Be2 {[%clk 0:02:54.7]} 6... h6 {[%clk 0:02:59.4]}
7. Bd3 {[%clk 0:02:55.6]} 7... Bxd3 {[%clk 0:02:58.4]} 8. Qxd3 {[%clk
0:02:57.5]} 8... Nbd7 {[%clk 0:02:58.2]} 9. O-O {[%clk 0:02:55.6]} 9... Bb4
{[%clk 0:02:58.4]} 10. Bd2 {[%clk 0:02:50.4]} 10... a5 {[%clk 0:02:58.3]} 11. a3
{[%clk 0:02:47.4]} 11... Bxc3 {[%clk 0:02:58.3]} 12. Bxc3 {[%clk 0:02:48.3]}
12... Ne4 {[%clk 0:02:58.5]} 13. Nd2 {[%clk 0:02:43.6]} 13... Ndf6 {[%clk
0:02:56.4]} 14. f3 {[%clk 0:02:40.1]} 14... Nxd2 {[%clk 0:02:53.8]} 15. Bxd2
{[%clk 0:02:40.7]} 15... O-O {[%clk 0:02:52.8]} 16. Rfd1 {[%clk 0:02:28.6]}
16... a4 {[%clk 0:02:47.9]} 17. Bb4 {[%clk 0:02:28]} 17... Re8 {[%clk
0:02:47.6]} 18. e4 {[%clk 0:02:20.8]} 18... dxe4 {[%clk 0:02:24.7]} 19. fxe4
{[%clk 0:02:21.1]} 19... e5 {[%clk 0:02:25.4]} 20. d5 {[%clk 0:02:18.4]} 20...
cxd5 {[%clk 0:02:24.7]} 21. cxd5 {[%clk 0:02:18.7]} 21... Qb6+ {[%clk
0:02:23.9]} 22. Kh1 {[%clk 0:01:12.2]} 22... Ng4 {[%clk 0:02:22.8]} 23. Rf1
{[%clk 0:00:59.8]} 23... Nf2+ {[%clk 0:02:22.8]} 24. Rxf2 {[%clk 0:01:00.9]}
24... Qxf2 {[%clk 0:02:23.3]} 25. Bc3 {[%clk 0:01:02.3]} 25... f5 {[%clk
0:02:10.7]} 26. Qb5 {[%clk 0:00:43.2]} 26... fxe4 {[%clk 0:02:04.6]} 27. Rf1
{[%clk 0:00:44.2]} 27... Qh4 {[%clk 0:01:41.4]} 28. d6 {[%clk 0:00:35.8]} 28...
Rf8 {[%clk 0:01:29.2]} 29. Rd1 {[%clk 0:00:15.5]} 29... Qf6 {[%clk 0:01:08.6]}
30. d7 {[%clk 0:00:12.3]} 30... e3 {[%clk 0:01:03]} 31. Bxe5 {[%clk 0:00:08.4]}
31... Qe6 {[%clk 0:00:55]} 32. Bg3 {[%clk 0:00:07.3]} 32... e2 {[%clk
0:00:51.6]} 33. Rf1 {[%clk 0:00:08.6]} 0-1

[Event "*** Titled Tuesday 3|2 Blitz"]
[Site "Chess.com"]
[Date "2015.12.01"]
[Round "1"]
[White "ZEN-22"]
[Black "GeorgMeier"]
[Result "0-1"]
[WhiteElo "2264"]
[BlackElo "2619"]
[TimeControl "180+2"]
[EndTime "11:07:49 PST"]
[Termination "GeorgMeier won by resignation"]

1. e4 {[%clk 0:03:00.8]} 1... e6 {[%clk 0:03:00.8]} 2. d4 {[%clk 0:03:00.4]}
2... d5 {[%clk 0:03:01.7]} 3. exd5 {[%clk 0:03:00.9]} 3... exd5 {[%clk
0:03:02.4]} 4. c4 {[%clk 0:03:02.2]} 4... Nf6 {[%clk 0:03:02.7]} 5. Nc3 {[%clk
0:03:03.6]} 5... Bb4 {[%clk 0:03:01]} 6. Bg5 {[%clk 0:03:03.8]} 6... O-O {[%clk
0:02:59.1]} 7. Nf3 {[%clk 0:03:03.5]} 7... Qe8+ {[%clk 0:02:53.2]} 8. Be2 {[%clk
0:03:00.7]} 8... Ne4 {[%clk 0:02:53.9]} 9. Bd2 {[%clk 0:02:58.9]} 9... Nxd2
{[%clk 0:02:50.3]} 10. Nxd2 {[%clk 0:02:54.9]} 10... Nc6 {[%clk 0:02:45.4]} 11.
Nxd5 {[%clk 0:02:49.1]} 11... Ba5 {[%clk 0:02:03.4]} 12. O-O {[%clk 0:02:36.8]}
12... Nxd4 {[%clk 0:02:03.8]} 13. Bd3 {[%clk 0:02:37.9]} 13... c6 {[%clk
0:02:02.9]} 14. Ne3 {[%clk 0:02:36.9]} 14... Bc7 {[%clk 0:02:00.9]} 15. Nf3
{[%clk 0:02:36.4]} 15... Nxf3+ {[%clk 0:01:59.6]} 16. Qxf3 {[%clk 0:02:37.2]}
16... g6 {[%clk 0:02:01.2]} 17. g3 {[%clk 0:02:33.7]} 17... Be6 {[%clk
0:02:00.7]} 18. Rfe1 {[%clk 0:02:33.7]} 18... Rd8 {[%clk 0:01:55]} 19. Rad1
{[%clk 0:02:33.1]} 19... Qe7 {[%clk 0:01:54.2]} 20. b3 {[%clk 0:02:21.1]} 20...
Rd7 {[%clk 0:01:48.5]} 21. Bc2 {[%clk 0:02:12.5]} 21... Rfd8 {[%clk 0:01:48.9]}
22. Rxd7 {[%clk 0:02:13.3]} 22... Rxd7 {[%clk 0:01:49.4]} 23. h4 {[%clk
0:02:05.8]} 23... Qc5 {[%clk 0:01:47.6]} 24. Kg2 {[%clk 0:02:02]} 24... Kg7
{[%clk 0:01:47.2]} 25. h5 {[%clk 0:01:59.5]} 25... Qg5 {[%clk 0:01:45.9]} 26.
Rh1 {[%clk 0:01:54.7]} 26... Rd2 {[%clk 0:01:46.3]} 27. hxg6 {[%clk 0:01:50.8]}
27... hxg6 {[%clk 0:01:46.8]} 28. Be4 {[%clk 0:01:48.3]} 28... Bb6 {[%clk
0:01:47]} 29. Re1 {[%clk 0:01:46.6]} 29... Rxa2 {[%clk 0:01:47.4]} 30. Kg1
{[%clk 0:01:43.4]} 30... a5 {[%clk 0:01:46.2]} 31. Re2 {[%clk 0:01:33.6]} 31...
Rxe2 {[%clk 0:01:43.5]} 32. Qxe2 {[%clk 0:01:34.7]} 32... Bxe3 {[%clk
0:01:44.8]} 33. Qxe3 {[%clk 0:01:36.1]} 33... Qxe3 {[%clk 0:01:45.7]} 34. fxe3
{[%clk 0:01:37.6]} 34... Kf6 {[%clk 0:01:47.3]} 35. Kf2 {[%clk 0:01:37.7]} 35...
Ke5 {[%clk 0:01:48.6]} 36. Bc2 {[%clk 0:01:35.8]} 36... Bf5 {[%clk 0:01:49.6]}
37. Bd1 {[%clk 0:01:36]} 37... Ke4 {[%clk 0:01:41.1]} 38. Bc2+ {[%clk
0:01:34.2]} 38... Ke5 {[%clk 0:01:42]} 39. Bd1 {[%clk 0:01:36.1]} 39... Bb1
{[%clk 0:01:40.5]} 40. Ke2 {[%clk 0:01:36.5]} 40... Ke4 {[%clk 0:01:39.1]} 41.
Kd2 {[%clk 0:01:37.5]} 41... Bd3 {[%clk 0:01:32.8]} 42. Bg4 {[%clk 0:01:35.3]}
42... f5 {[%clk 0:01:31.3]} 43. Bh3 {[%clk 0:01:35.9]} 43... Bb1 {[%clk
0:01:31.7]} 44. Bg2+ {[%clk 0:01:36.6]} 44... Ke5 {[%clk 0:01:32.6]} 45. Kc3
{[%clk 0:01:37.5]} 45... Be4 {[%clk 0:01:33.2]} 46. Bf1 {[%clk 0:01:38.7]} 46...
Bf3 {[%clk 0:01:31.5]} 47. Bd3 {[%clk 0:01:39.5]} 47... Kf6 {[%clk 0:01:32.4]}
48. Bc2 {[%clk 0:01:35]} 48... Kg5 {[%clk 0:01:29]} 49. Kd4 {[%clk 0:01:28.9]}
49... Kg4 {[%clk 0:01:29.7]} 50. Kc5 {[%clk 0:01:28.2]} 50... Kxg3 {[%clk
0:01:30.1]} 51. Kb6 {[%clk 0:01:26.2]} 51... c5 {[%clk 0:01:24.8]} 52. Kxa5
{[%clk 0:01:22.5]} 52... Be4 {[%clk 0:01:24.5]} 53. Bd1 {[%clk 0:01:22.6]} 53...
Kf2 {[%clk 0:01:25.6]} 54. Kb5 {[%clk 0:01:23.8]} 54... g5 {[%clk 0:01:26.9]}
55. Kxc5 {[%clk 0:01:23.1]} 55... g4 {[%clk 0:01:28.1]} 0-1

[Event "*** Titled Tuesday 3|2 Blitz"]
[Site "Chess.com"]
[Date "2015.12.01"]
[Round "1"]
[White "Oligan22"]
[Black "Matibar"]
[Result "0-1"]
[WhiteElo "2166"]
[BlackElo "2489"]
[TimeControl "180+2"]
[EndTime "11:07:51 PST"]
[Termination "Matibar won by resignation"]

1. e4 {[%clk 0:02:49.7]} 1... e6 {[%clk 0:02:58.7]} 2. d4 {[%clk 0:02:48.2]}
2... d5 {[%clk 0:02:58.6]} 3. Nc3 {[%clk 0:02:47.9]} 3... Bb4 {[%clk 0:02:58.4]}
4. Ne2 {[%clk 0:02:47]} 4... Nf6 {[%clk 0:02:54.2]} 5. e5 {[%clk 0:02:43.1]}
5... Nfd7 {[%clk 0:02:54.1]} 6. f4 {[%clk 0:02:38.8]} 6... b6 {[%clk 0:02:52.4]}
7. a3 {[%clk 0:02:28.9]} 7... Bxc3+ {[%clk 0:02:51.3]} 8. Nxc3 {[%clk
0:02:30.8]} 8... Ba6 {[%clk 0:02:52.8]} 9. Qg4 {[%clk 0:02:21.3]} 9... g6 {[%clk
0:02:52.6]} 10. Be3 {[%clk 0:02:15.7]} 10... Bxf1 {[%clk 0:02:48.2]} 11. Rxf1
{[%clk 0:02:17.6]} 11... c5 {[%clk 0:02:49.3]} 12. O-O-O {[%clk 0:02:16.9]}
12... Nc6 {[%clk 0:02:37.9]} 13. Nb5 {[%clk 0:02:16.2]} 13... O-O {[%clk
0:02:25.6]} 14. Bf2 {[%clk 0:02:10.9]} 14... a6 {[%clk 0:02:14]} 15. Nc3 {[%clk
0:01:28.6]} 15... Nxd4 {[%clk 0:02:04.2]} 16. Bxd4 {[%clk 0:01:27.7]} 16... cxd4
{[%clk 0:02:06.1]} 17. Rxd4 {[%clk 0:01:28.3]} 17... Rc8 {[%clk 0:02:06.9]} 18.
h4 {[%clk 0:01:24.6]} 18... f5 {[%clk 0:02:00]} 19. exf6 {[%clk 0:01:22.7]}
19... Qxf6 {[%clk 0:02:01]} 20. Rfd1 {[%clk 0:01:19.1]} 20... Qf5 {[%clk
0:01:49.3]} 21. Qe2 {[%clk 0:01:06.8]} 21... Nc5 {[%clk 0:01:32.8]} 22. g4
{[%clk 0:00:58.5]} 22... Qf6 {[%clk 0:01:33.8]} 23. h5 {[%clk 0:00:57]} 23...
gxh5 {[%clk 0:01:26.5]} 24. gxh5 {[%clk 0:00:56.1]} 24... Kh8 {[%clk 0:01:24.4]}
25. Kb1 {[%clk 0:00:39.9]} 25... Rg8 {[%clk 0:01:25]} 26. Qe3 {[%clk 0:00:33.4]}
26... Rg2 {[%clk 0:01:16.3]} 27. Qf3 {[%clk 0:00:28.1]} 27... Rcg8 {[%clk
0:01:16.3]} 28. R4d2 {[%clk 0:00:28.8]} 28... R2g3 {[%clk 0:01:15.3]} 29. Qf2
{[%clk 0:00:25.4]} 29... Rxc3 {[%clk 0:01:13.4]} 30. bxc3 {[%clk 0:00:25.4]}
30... Ne4 {[%clk 0:01:14.8]} 31. Qxb6 {[%clk 0:00:20.4]} 31... Nxc3+ {[%clk
0:01:14]} 32. Kc1 {[%clk 0:00:18.2]} 32... Nxd1 {[%clk 0:01:11.5]} 33. Rxd1
{[%clk 0:00:20.1]} 33... Qxf4+ {[%clk 0:01:12.7]} 34. Kb1 {[%clk 0:00:20.7]}
34... Rb8 {[%clk 0:01:13]} 35. Qxb8+ {[%clk 0:00:16.7]} 35... Qxb8+ {[%clk
0:01:12.5]} 36. Kc1 {[%clk 0:00:16.2]} 36... Qd6 {[%clk 0:01:11.6]} 37. Rd3
{[%clk 0:00:15.6]} 37... Kg7 {[%clk 0:01:11.6]} 38. Kd2 {[%clk 0:00:15.1]} 38...
Kf6 {[%clk 0:01:11.7]} 0-1

[Event "*** Titled Tuesday 3|2 Blitz"]
[Site "Chess.com"]
[Date "2015.12.01"]
[Round "1"]
[White "WanderingPuppet"]
[Black "pKiLz5Rn9b"]
[Result "0-1"]
[WhiteElo "2148"]
[BlackElo "2464"]
[TimeControl "180+2"]
[EndTime "11:07:52 PST"]
[Termination "pKiLz5Rn9b won on time"]

1. e4 {[%clk 0:02:55.1]} 1... e6 {[%clk 0:03:00.9]} 2. d4 {[%clk 0:02:56]} 2...
d5 {[%clk 0:02:52.7]} 3. Nc3 {[%clk 0:02:57.6]} 3... Nf6 {[%clk 0:02:49.2]} 4.
Bg5 {[%clk 0:02:58.2]} 4... Be7 {[%clk 0:02:39.8]} 5. e5 {[%clk 0:02:57.5]} 5...
Nfd7 {[%clk 0:02:37.6]} 6. h4 {[%clk 0:02:58.5]} 6... h6 {[%clk 0:02:37.7]} 7.
Bxe7 {[%clk 0:02:53.9]} 7... Qxe7 {[%clk 0:02:32]} 8. Nb5 {[%clk 0:02:54.2]}
8... Nb6 {[%clk 0:02:32.4]} 9. a3 {[%clk 0:02:48.8]} 9... a6 {[%clk 0:02:32.3]}
10. Nc3 {[%clk 0:02:47.4]} 10... c5 {[%clk 0:02:33.9]} 11. Qg4 {[%clk
0:02:44.5]} 11... O-O {[%clk 0:02:28.7]} 12. Nf3 {[%clk 0:02:43.6]} 12... Nc6
{[%clk 0:02:27.2]} 13. dxc5 {[%clk 0:02:39.4]} 13... Nd7 {[%clk 0:02:25.5]} 14.
Qf4 {[%clk 0:02:36.1]} 14... f6 {[%clk 0:02:25.9]} 15. exf6 {[%clk 0:02:32.6]}
15... Rxf6 {[%clk 0:02:26.9]} 16. Qd6 {[%clk 0:02:33.6]} 16... Nxc5 {[%clk
0:02:26.2]} 17. Qxe7 {[%clk 0:02:34.2]} 17... Nxe7 {[%clk 0:02:28.1]} 18. O-O-O
{[%clk 0:02:25.7]} 18... Bd7 {[%clk 0:02:24.9]} 19. Rd2 {[%clk 0:02:11.9]} 19...
Be8 {[%clk 0:02:16]} 20. Ne5 {[%clk 0:02:02.2]} 20... Nd7 {[%clk 0:02:14]} 21.
Nxd7 {[%clk 0:01:55.4]} 21... Bxd7 {[%clk 0:02:15.9]} 22. f3 {[%clk 0:01:52.4]}
22... Bc6 {[%clk 0:02:10.9]} 23. Bd3 {[%clk 0:01:50.5]} 23... e5 {[%clk
0:02:11.6]} 24. Re2 {[%clk 0:01:43.9]} 24... e4 {[%clk 0:01:52.6]} 25. fxe4
{[%clk 0:01:42.2]} 25... d4 {[%clk 0:01:53.3]} 26. Nd1 {[%clk 0:01:14.9]} 26...
Rd8 {[%clk 0:01:49.9]} 27. Bc4+ {[%clk 0:00:52.9]} 27... Kh8 {[%clk 0:01:47.7]}
28. Nf2 {[%clk 0:00:54.5]} 28... Ng6 {[%clk 0:01:34.7]} 29. Nd3 {[%clk
0:00:51.7]} 29... Re8 {[%clk 0:01:34.4]} 30. h5 {[%clk 0:00:21.8]} 30... Ne5
{[%clk 0:01:33.9]} 31. Nxe5 {[%clk 0:00:19.2]} 31... Rxe5 {[%clk 0:01:35.8]} 32.
Bd3 {[%clk 0:00:14.9]} 32... Rfe6 {[%clk 0:01:36.3]} 33. Rh4 {[%clk 0:00:15.4]}
33... Kg8 {[%clk 0:01:34.7]} 34. Kd2 {[%clk 0:00:13.5]} 34... Kf8 {[%clk
0:01:34.3]} 35. g3 {[%clk 0:00:09.7]} 35... Ke7 {[%clk 0:01:33.8]} 0-1